bitfinex/quotes_BTCUSD_20250330
["timestamp","ask_amount","ask_price","bid_price","bid_amount"]
[1743342067349,0.02249927,83000.0,82999.0,0.240965]
[1743342068168,0.02249927,83000.0,82999.0,0.38783868]
[1743342068335,0.02249927,83000.0,82999.0,0.48869221]
[1743342069631,0.02249927,83000.0,82999.0,0.9834779]
[1743342070040,0.02249927,83000.0,82999.0,0.9864779]
[1743342070474,9.107e-05,83000.0,82999.0,0.9864779]
[1743342071412,9.107e-05,83000.0,82999.0,0.9954361]
[1743342071682,9.107e-05,83000.0,82999.0,1.0450361]
[1743342072877,9.107e-05,83000.0,82999.0,1.0400361]
[1743342073013,9.107e-05,83000.0,82999.0,1.0460361]
[1743342073446,9.107e-05,83000.0,82999.0,1.0400361]
[1743342073766,9.107e-05,83000.0,82999.0,1.0460361]
[1743342073966,9.107e-05,83000.0,82999.0,1.0520361]
[1743342074472,1e-08,83005.0,83000.0,0.01454085]
[1743342074644,0.004,83019.0,83018.0,0.252956]
[1743342075010,0.00409104,83019.0,83018.0,0.51868168]
[1743342075749,0.00409104,83019.0,83018.0,0.54855856]
[1743342075951,0.00409104,83019.0,83018.0,0.55455856]
[1743342076137,0.00409104,83019.0,83018.0,0.66060702]
[1743342078432,0.00409104,83019.0,83018.0,1.0720927]
[1743342084576,0.00409104,83019.0,83018.0,0.96604424]
[1743342084770,0.00409104,83019.0,83018.0,0.56764739]
[1743342084969,0.00409104,83019.0,83018.0,0.44736256]
[1743342084970,0.01613604,83019.0,83018.0,0.44736256]
[1743342085204,0.01613604,83019.0,83018.0,0.012]
[1743342086152,0.01613604,83019.0,83018.0,0.006]
[1743342086289,0.07428046,83019.0,83018.0,0.006]
[1743342086492,0.07428046,83019.0,83018.0,0.01]
[1743342086694,0.07428046,83019.0,83018.0,0.004]
[1743342086952,0.252983,83009.0,83008.0,0.41148568]
[1743342088557,0.27534624,83009.0,83008.0,0.41148568]
[1743342089012,0.27534624,83009.0,83008.0,0.41748568]
[1743342089429,0.02236324,83009.0,83008.0,0.60856858]
[1743342089636,0.02236324,83009.0,83008.0,0.69546858]
[1743342090298,0.02236324,83009.0,83008.0,0.65125836]
[1743342090614,0.012046,83015.0,83008.0,0.65125836]
[1743342090763,0.012046,83015.0,83009.0,0.13482568]
[1743342091500,0.012046,83013.0,83009.0,0.13482568]
[1743342091904,0.240929,83012.0,83009.0,0.13482568]
[1743342092127,0.252975,83012.0,83009.0,0.13482568]
[1743342092334,0.012046,83011.0,83009.0,0.13482568]
[1743342092734,0.012046,83011.0,83009.0,0.13982568]
[1743342092963,0.012046,83011.0,83009.0,0.13482568]
[1743342093331,0.012046,83011.0,83009.0,0.13982568]
[1743342093630,0.02236324,83010.0,83009.0,0.13982568]
[1743342093985,0.02236324,83010.0,83009.0,0.14082568]
[1743342094173,0.02236324,83010.0,83009.0,0.15287168]
[1743342094377,0.02236324,83010.0,83009.0,0.24427316]
[1743342094945,0.02236324,83010.0,83009.0,0.15287168]
[1743342095241,0.02236324,83010.0,83009.0,0.15887168]
[1743342095736,0.02236324,83010.0,83009.0,0.15287168]
[1743342095936,0.02236324,83010.0,83009.0,0.57035736]
[1743342097608,0.02236324,83010.0,83009.0,0.69795736]
[1743342097829,0.02236324,83010.0,83009.0,0.81824219]
[1743342098514,0.00425954,83019.0,83018.0,0.012045]
[1743342099191,0.00425954,83019.0,83018.0,0.252956]
[1743342099387,0.00425954,83019.0,83018.0,0.88066736]
[1743342099603,0.02671884,83019.0,83018.0,0.88066736]
[1743342099789,0.02671884,83019.0,83018.0,0.99601999]
[1743342100191,0.02671884,83019.0,83018.0,1.00001999]
[1743342100763,0.02671884,83019.0,83018.0,1.00301999]
[1743342102222,0.00425954,83019.0,83018.0,1.00301999]
[1743342104090,0.00425954,83019.0,83018.0,1.04911999]
[1743342104285,0.00425954,83019.0,83018.0,1.04611999]
[1743342104445,0.00425954,83019.0,83018.0,1.04211999]
[1743342104648,0.00425954,83019.0,83018.0,1.04511999]
[1743342104851,0.0003372,83023.0,83018.0,1.04511999]
[1743342104852,0.0003372,83023.0,83022.0,0.34978585]
[1743342105055,0.00080919,83023.0,83022.0,0.57092421]
[1743342106438,0.00080919,83023.0,83022.0,0.57592421]
[1743342107328,0.00080919,83023.0,83022.0,0.57992421]
[1743342108426,0.00080919,83023.0,83022.0,0.47907068]
[1743342108682,0.012041,83045.0,83034.0,0.26744885]
[1743342108881,0.012041,83045.0,83034.0,0.38773368]
[1743342109206,0.0001686,83048.0,83034.0,0.38773368]
[1743342109778,0.0001686,83048.0,83034.0,0.47003368]
[1743342110228,0.0001686,83048.0,83034.0,0.4816943]
[1743342110429,0.0001686,83048.0,83034.0,0.58244653]
[1743342110681,0.0001686,83048.0,83034.0,0.98767267]
[1743342110963,0.0001686,83048.0,83034.0,1.03377267]
[1743342111187,0.0001686,83048.0,83034.0,1.03877267]
[1743342111588,0.0001686,83048.0,83034.0,1.04377267]
[1743342111796,0.0001686,83048.0,83034.0,1.03877267]
[1743342112000,0.0001686,83048.0,83034.0,1.33877267]
[1743342112196,0.0001686,83048.0,83034.0,1.34477267]
[1743342112584,0.0001686,83048.0,83041.0,0.552886]
[1743342112720,0.0001686,83048.0,83041.0,1.78445232]
[1743342113887,0.0001686,83048.0,83041.0,1.80171508]
[1743342114211,0.0001686,83048.0,83041.0,1.95271508]
[1743342114406,4e-07,83042.0,83041.0,1.97371508]
[1743342114587,0.003663,83049.0,83048.0,0.317041]
[1743342114816,0.0003372,83052.0,83051.0,0.15998085]
[1743342114817,2e-07,83052.0,83051.0,0.15998085]
[1743342114991,8e-07,83053.0,83052.0,0.65469285]
[1743342115204,0.00014234,83053.0,83052.0,0.77497768]
[1743342115433,3.4e-07,83053.0,83052.0,0.89872991]
[1743342115604,3.4e-07,83053.0,83052.0,0.94482991]
[1743342116218,3.4e-07,83065.0,83064.0,0.710516]
[1743342116416,3.4e-07,83065.0,83064.0,1.01366168]
[1743342117413,3.4e-07,83065.0,83064.0,1.01966168]
[1743342117627,3.4e-07,83065.0,83064.0,1.13994651]
[1743342117813,3.4e-07,83065.0,83064.0,0.95262651]
[1743342118031,3.4e-07,83065.0,83064.0,1.13994651]
[1743342118387,3.4e-07,83065.0,83064.0,1.14594651]
[1743342118954,0.0001686,83085.0,83082.0,0.552762]
[1743342119111,0.0001686,83085.0,83082.0,1.25552581]
[1743342119314,0.0001686,83085.0,83082.0,1.47036581]
[1743342119315,0.00031009,83083.0,83082.0,1.47036581]
[1743342119518,0.00031009,83083.0,83082.0,1.48438784]
[1743342120220,0.00031009,83083.0,83082.0,1.49038784]
[1743342120626,0.00031009,83083.0,83082.0,1.31614784]
[1743342120870,0.00031009,83083.0,83082.0,1.49038784]
[1743342121047,0.00031009,83083.0,83082.0,1.49638784]
[1743342121445,0.00031009,83083.0,83082.0,1.16594916]
[1743342121648,0.00031009,83083.0,83082.0,1.1090672]
[1743342122262,0.00031009,83083.0,83082.0,1.12360805]
[1743342123337,0.2408335,83103.0,83097.0,0.240682]
[1743342123739,0.0001685,83103.0,83102.0,0.02657385]
[1743342123945,0.0001685,83103.0,83102.0,0.18922165]
[1743342124754,0.0001685,83103.0,83102.0,0.13482568]
[1743342124948,0.012033,83098.0,83097.0,0.01554085]
[1743342125209,0.240673,83100.0,83097.0,0.001]
[1743342125734,0.0001685,83103.0,83097.0,0.001]
[1743342125942,0.252701,83102.0,83098.0,0.02927127]
[1743342126224,0.012033,83102.0,83098.0,0.02927127]
[1743342126772,0.0001683,83101.0,83098.0,0.28198227]
[1743342127189,0.0001683,83101.0,83098.0,0.04230427]
[1743342127452,0.2408393,83101.0,83098.0,0.03027127]
[1743342127652,0.012033,83099.0,83098.0,0.002]
[1743342127986,0.012033,83099.0,83098.0,0.001]
[1743342128410,0.012033,83099.0,83098.0,0.003]
[1743342128818,0.252709,83099.0,83098.0,0.003]
[1743342129306,0.252709,83099.0,83098.0,0.002]
[1743342129895,0.252716,83097.0,83091.0,0.012034]
[1743342130041,0.252716,83097.0,83091.0,0.12028483]
[1743342130257,0.252716,83097.0,83091.0,0.37301683]
[1743342130838,0.252716,83097.0,83091.0,0.12028483]
[1743342130839,0.012034,83092.0,83091.0,0.12028483]
[1743342131038,0.240697,83092.0,83091.0,0.12028483]
[1743342131239,0.012034,83093.0,83091.0,0.12328483]
[1743342131443,0.252728,83094.0,83091.0,0.12328483]
[1743342131718,0.252714,83098.0,83091.0,0.13531883]
[1743342131843,0.012034,83095.0,83091.0,0.12328483]
[1743342132042,0.252731,83092.0,83091.0,0.12328483]
[1743342132244,0.012034,83092.0,83091.0,0.003]
[1743342132444,0.012034,83092.0,83087.0,0.252746]
[1743342132969,0.012034,83092.0,83091.0,0.007]
[1743342133195,0.012034,83092.0,83091.0,0.004]
[1743342133400,0.252723,83095.0,83091.0,0.004]
[1743342133614,0.012034,83094.0,83091.0,0.005]
[1743342134359,0.252728,83093.0,83087.0,0.252746]
[1743342134685,0.252728,83093.0,83091.0,0.008]
[1743342135097,0.012034,83093.0,83091.0,0.008]
[1743342135522,0.252728,83093.0,83091.0,0.008]
[1743342135681,0.012034,83092.0,83091.0,0.008]
[1743342135881,0.012034,83092.0,83091.0,0.004]
[1743342136084,0.012035,83086.0,83085.0,0.3907803]
[1743342136324,0.012035,83089.0,83085.0,0.3907803]
[1743342136325,0.012035,83089.0,83085.0,0.58590122]
[1743342136527,0.012035,83089.0,83085.0,0.3907803]
[1743342136528,0.252749,83086.0,83085.0,0.3907803]
[1743342136728,0.331849,83086.0,83085.0,0.3907803]
[1743342136926,0.379649,83086.0,83085.0,0.3907803]
[1743342137787,0.379649,83086.0,83085.0,0.3967803]
[1743342137994,0.379649,83086.0,83085.0,0.3907803]
[1743342138194,0.379649,83086.0,83085.0,0.004]
[1743342139412,0.252767,83080.0,83079.0,0.0003366]
[1743342141235,0.252767,83080.0,83079.0,0.0043366]
[1743342153762,0.240714,83087.0,83079.0,0.0043366]
[1743342153763,0.0001683,83093.0,83089.0,0.012035]
[1743342154136,0.0122023,83093.0,83085.0,0.012035]
[1743342154342,0.0001683,83093.0,83088.0,0.252742]
[1743342154702,0.0001683,83093.0,83089.0,0.012035]
[1743342154882,0.0001683,83093.0,83089.0,0.02394838]
[1743342155084,0.012035,83090.0,83089.0,0.04330812]
[1743342155283,0.240697,83092.0,83086.0,0.13231983]
[1743342155520,0.240697,83092.0,83087.0,0.252746]
[1743342155739,0.0122023,83093.0,83088.0,0.012035]
[1743342156730,0.0122023,83093.0,83088.0,0.013035]
[1743342156926,0.252731,83092.0,83088.0,0.001]
[1743342157813,0.0122023,83093.0,83089.0,0.07054886]
[1743342158075,0.0122023,83093.0,83088.0,0.012035]
[1743342158691,0.0122023,83093.0,83088.0,0.013035]
[1743342158892,0.0122023,83093.0,83089.0,0.240705]
[1743342159099,0.0001683,83093.0,83089.0,0.240705]
[1743342159475,0.0001683,83093.0,83090.0,0.012035]
[1743342159688,0.0001683,83093.0,83091.0,0.2658516]
[1743342159886,0.0001683,83093.0,83092.0,0.012034]
[1743342160293,0.0001683,83093.0,83092.0,0.14685968]
[1743342161360,0.0001683,83093.0,83092.0,0.14785968]
[1743342162965,0.0001683,83093.0,83092.0,0.83863998]
[1743342163280,0.0001683,83093.0,83092.0,1.0657401]
[1743342163479,0.0001683,83093.0,83092.0,1.1108401]
[1743342164100,0.0001683,83093.0,83092.0,1.1098401]
[1743342164489,0.0001683,83093.0,83092.0,1.1158401]
[1743342164678,0.0001683,83093.0,83092.0,1.1218401]
[1743342165014,0.0001683,83101.0,83100.0,0.139233]
[1743342165219,0.0001683,83101.0,83100.0,0.78212461]
[1743342166135,0.0001683,83101.0,83100.0,0.78712461]
[1743342166537,0.0001683,83101.0,83100.0,0.79212461]
[1743342166851,0.0001683,83101.0,83100.0,0.80134671]
[1743342168088,0.0001683,83101.0,83100.0,1.04201971]
[1743342171344,0.0001683,83101.0,83100.0,0.92456578]
[1743342173230,0.0001685,83103.0,83102.0,0.56724185]
[1743342173422,0.0001685,83103.0,83102.0,0.76962668]
[1743342174591,0.0001685,83103.0,83102.0,1.20717038]
[1743342174804,0.0001685,83103.0,83102.0,1.21717038]
[1743342175019,0.0001685,83103.0,83102.0,1.33245521]
[1743342175239,0.0001685,83103.0,83102.0,1.33745521]
[1743342175445,0.0001685,83103.0,83102.0,1.34245521]
[1743342175848,0.0001685,83103.0,83102.0,1.33745521]
[1743342176052,0.0001685,83103.0,83102.0,1.34345521]
[1743342177020,0.0001685,83103.0,83102.0,1.33845521]
[1743342177469,0.0001685,83103.0,83102.0,1.34445521]
[1743342181513,0.0001685,83103.0,83102.0,1.51197521]
[1743342183913,0.240581,83132.0,83117.0,0.252655]
[1743342184117,0.01291732,83118.0,83117.0,0.84938608]
[1743342185358,0.01291732,83118.0,83117.0,0.85438608]
[1743342185557,0.01291732,83118.0,83117.0,0.87856556]
[1743342186508,0.01291732,83118.0,83117.0,0.80276686]
[1743342186720,0.01291732,83118.0,83117.0,0.78822601]
[1743342187130,0.01291732,83118.0,83117.0,0.80776686]
[1743342189915,0.01291732,83118.0,83117.0,0.79322601]
[1743342190074,0.01291732,83118.0,83117.0,0.80776686]
[1743342190273,0.01291732,83118.0,83117.0,0.88394159]
[1743342193814,0.01291732,83118.0,83117.0,0.96574159]
[1743342195807,0.01291732,83118.0,83117.0,0.88394159]
[1743342196164,0.01291732,83118.0,83117.0,0.56714286]
[1743342197562,0.01291732,83118.0,83117.0,0.54057101]
[1743342197745,0.26556932,83118.0,83117.0,0.3961067]
[1743342198642,0.01291732,83118.0,83117.0,0.3961067]
[1743342199300,0.01291732,83118.0,83117.0,0.6367307]
[1743342199455,0.01291732,83118.0,83117.0,0.6487617]
[1743342200372,0.01291732,83118.0,83117.0,0.3961067]
[1743342201854,0.01291732,83118.0,83117.0,0.74367112]
[1743342202568,0.01291732,83118.0,83117.0,0.86395595]
[1743342202775,0.01291732,83118.0,83117.0,0.76904653]
[1743342203289,0.01291732,83118.0,83117.0,0.51639153]
[1743342203490,0.26556932,83118.0,83117.0,0.3961067]
[1743342203672,0.34546932,83118.0,83117.0,0.3961067]
[1743342207386,0.26556932,83118.0,83117.0,0.01]
[1743342208250,0.01291732,83118.0,83117.0,0.38293983]
[1743342208447,0.01291732,83118.0,83117.0,0.42243701]
[1743342209113,0.01291732,83118.0,83117.0,0.38293983]
[1743342209961,0.01291732,83118.0,83117.0,0.01]
[1743342210071,0.02494832,83118.0,83117.0,0.01]
[1743342210718,0.01291732,83118.0,83117.0,0.01]
[1743342212272,0.01308582,83118.0,83117.0,0.01]
[1743342212654,0.01308582,83118.0,83117.0,0.0771724]
[1743342213015,0.01308582,83118.0,83117.0,0.0651414]
[1743342213430,0.01308582,83118.0,83117.0,0.01]
[1743342214015,0.03194166,83118.0,83117.0,0.01]
[1743342215044,0.04397266,83118.0,83117.0,0.01]
[1743342215254,0.03194166,83118.0,83117.0,0.01]
[1743342215408,0.01308582,83118.0,83117.0,0.01]
[1743342215623,0.01308582,83118.0,83117.0,0.0374693]
[1743342215824,0.01308582,83118.0,83117.0,0.0495003]
[1743342216226,0.01308582,83118.0,83117.0,0.2901243]
[1743342218548,0.03194142,83118.0,83117.0,0.2901243]
[1743342220552,0.03194142,83118.0,83117.0,0.262655]
[1743342220974,0.03194142,83118.0,83117.0,0.01]
[1743342221351,0.03194142,83118.0,83117.0,0.005]
[1743342223320,0.03194142,83118.0,83117.0,0.257655]
[1743342224409,0.03194142,83118.0,83117.0,0.017031]
[1743342224613,0.03194142,83118.0,83117.0,0.257655]
[1743342224813,0.03194142,83118.0,83117.0,0.41231679]
[1743342225150,0.03194142,83118.0,83117.0,0.77858738]
[1743342226605,0.01308582,83118.0,83117.0,0.77858738]
[1743342229455,0.03194008,83118.0,83117.0,0.77858738]
[1743342230011,0.03194008,83118.0,83117.0,1.15668738]
[1743342230220,0.03194008,83118.0,83117.0,1.22580504]
[1743342230602,0.03194008,83118.0,83117.0,1.15668738]
[1743342232083,0.03194008,83118.0,83117.0,1.72960738]
[1743342236414,0.01308582,83118.0,83117.0,1.72960738]
[1743342236629,0.01308582,83118.0,83117.0,1.72994438]
[1743342238067,0.01308582,83118.0,83117.0,1.72494438]
[1743342238448,0.01308582,83118.0,83117.0,1.73094438]
[1743342238651,0.01308582,83118.0,83117.0,1.73694438]
[1743342240190,0.01308582,83118.0,83117.0,1.77264085]
[1743342240491,0.01308582,83118.0,83117.0,1.73694438]
[1743342240850,0.03193924,83118.0,83117.0,1.73694438]
[1743342241221,0.03193924,83118.0,83117.0,1.75949688]
[1743342242120,0.03193924,83118.0,83117.0,1.73694438]
[1743342242537,0.03193924,83118.0,83117.0,1.65884438]
[1743342242946,0.03193924,83118.0,83117.0,1.09164853]
[1743342243347,0.03193924,83118.0,83117.0,1.10367953]
[1743342243960,0.03193924,83118.0,83117.0,0.9713637]
[1743342244992,0.04397024,83118.0,83117.0,0.9713637]
[1743342245201,0.03193924,83118.0,83117.0,0.9713637]
[1743342245377,0.03193924,83118.0,83117.0,0.012337]
[1743342245378,0.04397024,83118.0,83117.0,0.012337]
[1743342245732,0.13081756,83118.0,83117.0,0.012337]
[1743342245941,0.16076414,83118.0,83117.0,0.012337]
[1743342246829,0.16076414,83118.0,83117.0,0.006337]
[1743342247208,0.16076414,83118.0,83117.0,0.011337]
[1743342247603,0.16076414,83118.0,83117.0,0.005337]
[1743342248011,0.16076414,83118.0,83117.0,0.010337]
[1743342248817,0.17962113,83118.0,83117.0,0.010337]
[1743342249785,0.09277381,83118.0,83117.0,0.010337]
[1743342249995,0.47178198,83118.0,83117.0,0.010337]
[1743342250190,0.677776,83110.0,83109.0,0.000337]
[1743342250392,0.844616,83110.0,83109.0,0.000337]
[1743342251263,0.85663898,83110.0,83109.0,0.000337]
[1743342253638,0.85663898,83110.0,83109.0,0.001337]
[1743342253889,0.677776,83110.0,83109.0,0.001337]
[1743342254019,0.844616,83110.0,83109.0,0.001337]
[1743342254247,0.252676,83110.0,83109.0,0.001337]
[1743342254650,0.012032,83110.0,83109.0,0.001337]
[1743342254865,0.252668,83113.0,83109.0,0.001337]
[1743342254866,0.012031,83113.0,83109.0,0.001337]
[1743342255062,0.240624,83117.0,83110.0,0.012032]
[1743342255430,0.240621,83119.0,83113.0,0.012031]
[1743342255648,0.03194281,83118.0,83113.0,0.252666]
[1743342255798,0.04397381,83118.0,83113.0,0.012031]
[1743342256187,0.252655,83117.0,83112.0,0.012031]
[1743342256582,0.24063,83115.0,83109.0,0.001337]
[1743342256787,0.012031,83116.0,83111.0,0.252674]
[1743342257392,0.012031,83116.0,83112.0,0.001]
[1743342257796,0.012031,83116.0,83111.0,0.012032]
[1743342258128,0.012031,83116.0,83111.0,0.253673]
[1743342258633,0.012031,83116.0,83111.0,0.012032]
[1743342258838,0.252661,83115.0,83109.0,0.240984]
[1743342259274,0.252661,83115.0,83111.0,0.001]
[1743342259446,0.01885676,83114.0,83111.0,0.24164]
[1743342259626,0.01885676,83114.0,83113.0,0.012031]
[1743342259831,0.01885676,83114.0,83113.0,0.13231583]
[1743342260048,0.01885676,83114.0,83113.0,0.65324821]
[1743342260248,0.01885676,83114.0,83113.0,0.53330038]
[1743342261072,0.01885676,83114.0,83113.0,0.53930038]
[1743342261673,0.01985676,83114.0,83113.0,0.54430038]
[1743342262238,0.01985676,83114.0,83113.0,0.3974437]
[1743342262239,0.03188776,83114.0,83113.0,0.3974437]
[1743342262459,0.27252076,83114.0,83113.0,0.3974437]
[1743342262677,0.35191201,83114.0,83113.0,0.3974437]
[1743342262901,0.27252076,83114.0,83113.0,0.3974437]
[1743342265691,0.27152076,83114.0,83113.0,0.3924437]
[1743342265903,0.27152076,83114.0,83113.0,0.005337]
[1743342266521,0.252664,83114.0,83113.0,0.005337]
[1743342267794,0.252664,83114.0,83113.0,0.003337]
[1743342268001,0.252664,83114.0,83113.0,0.005337]
[1743342268200,0.252664,83114.0,83113.0,0.002337]
[1743342268562,0.252664,83114.0,83113.0,0.003337]
[1743342269552,0.27152144,83114.0,83113.0,0.003337]
[1743342269923,0.25949044,83114.0,83113.0,0.003337]
[1743342270277,0.27152144,83114.0,83113.0,0.003337]
[1743342272300,0.25949044,83114.0,83113.0,0.003337]
[1743342272469,0.27152144,83114.0,83113.0,0.003337]
[1743342272876,0.35171637,83114.0,83113.0,0.003337]
[1743342273240,0.27152144,83114.0,83113.0,0.003337]
[1743342274042,0.01885744,83114.0,83113.0,0.003337]
[1743342274914,0.01885744,83114.0,83113.0,0.25975283]
[1743342275254,0.01885744,83114.0,83113.0,0.27429368]
[1743342275852,0.01885744,83114.0,83113.0,0.27229368]
[1743342276359,0.01885744,83114.0,83113.0,0.27629368]
[1743342276561,0.01308582,83118.0,83117.0,0.012031]
[1743342276699,0.01308582,83118.0,83117.0,0.14685668]
[1743342276902,0.01308582,83118.0,83117.0,0.38748068]
[1743342277481,0.01308582,83118.0,83117.0,0.13482568]
[1743342277678,0.01308582,83118.0,83116.0,0.252658]
[1743342277905,0.01308582,83118.0,83117.0,0.014031]
[1743342278502,0.01308582,83118.0,83117.0,0.13431583]
[1743342278870,0.01308582,83118.0,83117.0,0.13631583]
[1743342279482,0.01308582,83118.0,83117.0,0.13431583]
[1743342280715,0.01308582,83118.0,83117.0,0.13631583]
[1743342280918,0.03194075,83118.0,83117.0,0.13631583]
[1743342281119,0.03194075,83118.0,83117.0,0.004]
[1743342281536,0.03194075,83118.0,83117.0,0.016031]
[1743342285815,0.01308582,83118.0,83117.0,0.016031]
[1743342287138,0.01258582,83118.0,83117.0,0.016031]
[1743342290194,0.03144071,83118.0,83117.0,0.26928257]
[1743342290376,0.03144071,83118.0,83117.0,0.34548257]
[1743342290819,0.03144071,83118.0,83117.0,0.22705668]
[1743342295229,0.03144071,83118.0,83117.0,0.21251583]
[1743342295511,0.03144071,83118.0,83117.0,0.59862253]
[1743342296463,0.01258582,83118.0,83117.0,0.59895953]
[1743342297299,0.01258582,83118.0,83117.0,0.61350038]
[1743342297501,0.01258582,83118.0,83117.0,0.78258521]
[1743342298401,0.01258582,83118.0,83117.0,0.78058521]
[1743342298642,0.01258582,83118.0,83117.0,0.78258521]
[1743342299047,0.01258582,83118.0,83117.0,0.78658521]
[1743342299508,0.03143913,83118.0,83117.0,0.78658521]
[1743342300765,0.03143913,83118.0,83117.0,0.66630038]
[1743342302152,0.03143913,83118.0,83117.0,0.67556729]
[1743342303036,0.03143913,83118.0,83117.0,0.97556729]
[1743342303436,0.03143913,83118.0,83117.0,0.97156729]
[1743342303835,0.03143913,83118.0,83117.0,0.96756729]
[1743342304038,0.28409113,83118.0,83117.0,0.50672853]
[1743342304354,0.03143913,83118.0,83117.0,0.51272853]
[1743342304785,0.03143913,83118.0,83117.0,0.52475953]
[1743342304989,0.03143913,83118.0,83117.0,0.53075953]
[1743342305154,0.03143913,83118.0,83117.0,0.52475953]
[1743342305362,0.03143913,83118.0,83117.0,0.52375953]
[1743342305773,0.03143913,83118.0,83117.0,0.52775953]
[1743342306455,0.01258582,83118.0,83117.0,0.52775953]
[1743342306983,0.01258582,83118.0,83117.0,0.3954437]
[1743342307098,0.13245487,83118.0,83117.0,0.009337]
[1743342307303,0.43245519,83118.0,83117.0,0.009337]
[1743342307506,0.42944697,83118.0,83117.0,0.009337]
[1743342308143,0.40021682,83118.0,83117.0,0.009337]
[1743342308343,0.40021682,83118.0,83117.0,0.000337]
[1743342308549,0.40021682,83118.0,83117.0,0.002337]
[1743342308745,0.40021682,83118.0,83117.0,0.003337]
[1743342309087,0.40021682,83118.0,83117.0,0.001337]
[1743342309403,0.40021682,83118.0,83117.0,0.002337]
[1743342309576,0.41907485,83118.0,83117.0,0.003337]
[1743342312218,0.41907485,83118.0,83117.0,0.002337]
[1743342312671,0.41907485,83118.0,83117.0,0.001337]
[1743342313584,0.44309763,83118.0,83117.0,0.001337]
[1743342313899,1.13540363,83118.0,83117.0,0.001337]
[1743342314067,1.13925063,83118.0,83117.0,0.000337]
[1743342314448,1.14125063,83118.0,83117.0,0.000337]
[1743342314878,1.13925063,83118.0,83117.0,0.000337]
[1743342315259,1.1223926,83118.0,83117.0,0.000337]
[1743342315475,0.6084256,83118.0,83117.0,0.000337]
[1743342315675,0.6064256,83118.0,83117.0,0.000337]
[1743342316095,0.6094256,83118.0,83117.0,0.000337]
[1743342316282,0.4723396,83118.0,83117.0,0.000337]
[1743342316968,0.5784756,83118.0,83117.0,0.000337]
[1743342319316,0.5784756,83118.0,83117.0,1e-06]
[1743342319526,0.377701,83102.0,83101.0,0.0003372]
[1743342319727,0.543821,83102.0,83101.0,0.0003372]
[1743342321252,0.544821,83102.0,83101.0,0.0003372]
[1743342321586,0.543821,83102.0,83101.0,0.0023372]
[1743342322041,0.543821,83102.0,83101.0,0.0003372]
[1743342322441,0.546821,83102.0,83101.0,0.0003372]
[1743342323366,0.546781,83102.0,83101.0,0.0003372]
[1743342323673,0.56916228,83102.0,83101.0,0.0003372]
[1743342324333,1.92509128,83102.0,83101.0,0.0003372]
[1743342324534,1.49172328,83102.0,83101.0,2e-07]
[1743342324735,0.56916228,83102.0,83101.0,2e-07]
[1743342325121,0.60199623,83102.0,83101.0,2e-07]
[1743342325323,0.59302553,83102.0,83101.0,2e-07]
[1743342326187,0.91802533,83102.0,83101.0,2e-07]
[1743342326389,0.89916208,83102.0,83101.0,2e-07]
[1743342326531,0.90961475,83102.0,83101.0,2e-07]
[1743342326734,0.552728,83093.0,83092.0,4e-07]
[1743342326940,0.680228,83093.0,83092.0,4e-07]
[1743342327149,0.74306175,83093.0,83092.0,4e-07]
[1743342327376,0.74306175,83093.0,83040.0,0.012042]
[1743342327377,0.685267,83080.0,83079.0,1e-06]
[1743342327577,2.60991575,83080.0,83079.0,1e-06]
[1743342327810,3.77807235,83080.0,83079.0,1e-06]
[1743342328148,3.77815169,83080.0,83079.0,1e-06]
[1743342328280,3.83868961,83080.0,83079.0,1e-06]
[1743342328692,0.252908,83034.0,83033.0,0.0003372]
[1743342329077,0.28574195,83034.0,83033.0,0.0003372]
[1743342329280,0.32684975,83034.0,83033.0,0.0003372]
[1743342329486,0.27178105,83034.0,83033.0,0.0003372]
[1743342329905,0.27178105,83034.0,83033.0,0.00080902]
[1743342332283,0.27178105,83034.0,83033.0,0.00380902]
[1743342332480,0.27178105,83034.0,83033.0,0.00080902]
[1743342332689,0.304615,83034.0,83033.0,0.00080902]
[1743342332889,0.304615,83034.0,83033.0,0.00380902]
[1743342334444,0.470655,83034.0,83033.0,0.00380902]
[1743342334590,0.5516966,83034.0,83033.0,0.00380902]
[1743342334847,0.51886265,83034.0,83033.0,0.00380902]
[1743342335815,0.43782105,83034.0,83033.0,0.00380902]
[1743342336646,0.418948,83034.0,83033.0,0.00380902]
[1743342339104,0.252908,83034.0,83033.0,0.00380902]
[1743342339301,0.418948,83034.0,83033.0,0.00380902]
[1743342339505,0.43782314,83034.0,83033.0,0.00380902]
[1743342343799,0.01887514,83034.0,83033.0,0.00380902]
[1743342344005,0.04115698,83034.0,83033.0,0.13310902]
[1743342344198,0.05319998,83034.0,83033.0,0.13310902]
[1743342345219,0.03091814,83034.0,83033.0,0.13310902]
[1743342345420,0.01887514,83034.0,83033.0,0.13310902]
[1743342346566,0.01204,83052.0,83045.0,0.012041]
[1743342346768,0.16596,83051.0,83042.0,0.012042]
[1743342346962,0.24083,83046.0,83039.0,0.24085]
[1743342347163,0.240816,83051.0,83046.0,0.24083]
[1743342347393,0.01204,83053.0,83048.0,0.012041]
[1743342347833,0.240815,83051.0,83041.0,0.299584]
[1743342347974,0.001,83052.0,83047.0,0.012041]
[1743342348199,0.240815,83052.0,83046.0,0.012041]
[1743342348399,0.240815,83052.0,83045.0,0.252872]
[1743342348400,0.01204,83053.0,83047.0,0.240825]
[1743342348623,0.01204,83055.0,83050.0,0.240818]
[1743342349009,0.01204,83055.0,83049.0,0.012041]
[1743342349441,0.252847,83054.0,83048.0,0.242824]
[1743342349623,0.0188708,83054.0,83052.0,0.240811]
[1743342349821,0.0188708,83054.0,83053.0,0.01204]
[1743342350055,0.0188708,83054.0,83053.0,0.26162483]
[1743342351360,0.0188708,83054.0,83053.0,0.26262483]
[1743342351594,0.0188708,83054.0,83053.0,0.26562483]
[1743342351813,0.0188708,83054.0,83053.0,0.26162483]
[1743342352267,0.0188708,83054.0,83053.0,0.27062483]
[1743342353006,0.0188708,83054.0,83053.0,0.28516568]
[1743342353459,0.0188708,83054.0,83053.0,0.25858483]
[1743342353689,0.0188708,83054.0,83053.0,0.27062483]
[1743342354042,0.0188708,83054.0,83053.0,0.65673153]
[1743342355373,0.252825,83062.0,83057.0,0.012039]
[1743342356541,0.012039,83061.0,83056.0,0.25284]
[1743342356765,0.012039,83061.0,83054.0,0.01204]
[1743342356965,0.252847,83054.0,83053.0,0.3861067]
[1743342357343,0.252841,83056.0,83053.0,0.3861067]
[1743342357561,0.01204,83055.0,83053.0,0.3861067]
[1743342357769,0.240807,83054.0,83053.0,0.3861067]
[1743342358169,0.252847,83054.0,83053.0,0.3861067]
[1743342358375,0.4969474,83054.0,83053.0,0.3861067]
[1743342358628,0.418687,83054.0,83053.0,0.3901067]